bitfinex/quotes_SOLUSD_20250228
["timestamp","ask_amount","ask_price","bid_price","bid_amount"]
[1740719533032,18.64964886,127.96,127.93,0.063]
[1740719533223,88.8527,127.95,127.93,0.063]
[1740719533623,6.0527,127.95,127.93,0.063]
[1740719534337,9.7,127.97,127.93,0.063]
[1740719535035,18.64964886,127.96,127.93,0.063]
[1740719535737,82.94216157,127.95,127.93,0.063]
[1740719536123,82.8,127.95,127.93,0.063]
[1740719536727,18.64964886,127.94,127.93,0.063]
[1740719537121,82.8,127.95,127.93,0.063]
[1740719537443,82.8,127.95,127.87,0.14216157]
[1740719537444,18.64964886,127.93,127.8,0.03]
[1740719537749,0.14216157,127.9,127.8,0.03]
[1740719537928,18.79181043,127.88,127.8,0.03]
[1740719538241,18.64964886,127.86,127.8,0.03]
[1740719538435,18.64964886,127.84,127.8,0.03]
[1740719538743,6.4912,127.87,127.8,0.03]
[1740719538744,18.64964886,127.82,127.8,0.03]
[1740719538940,92.5,127.83,127.8,0.03]
[1740719539442,18.64964886,127.82,127.8,0.03]
[1740719539859,92.5,127.83,127.8,0.03]
[1740719540340,1.532,127.86,127.8,0.03]
[1740719540544,9.7,127.85,127.8,0.03]
[1740719542031,9.7,127.85,127.79,19.99421437]
[1740719542644,18.64964886,127.84,127.76,81.6]
[1740719542835,18.64964886,127.84,127.75,0.03]
[1740719544543,9.7,127.85,127.75,20.03]
[1740719544727,9.7,127.85,127.76,0.14216157]
[1740719545440,9.7,127.85,127.79,20.0]
[1740719545637,82.8,127.86,127.79,20.0]
[1740719545838,9.7,127.85,127.79,20.0]
[1740719546142,9.7,127.85,127.8,0.14216157]
[1740719546548,9.7,127.85,127.83,20.0]
[1740719546744,6.1579,127.91,127.84,0.14216157]
[1740719546937,9.7,127.91,127.84,0.14216157]
[1740719547639,220.7979,127.95,127.87,20.0]
[1740719547856,9.7,127.94,127.87,20.0]
[1740719548036,230.4979,127.95,127.87,20.0]
[1740719548230,230.4979,127.95,127.88,0.14216157]
[1740719548548,141.54,127.95,127.88,0.14216157]
[1740719548843,141.54,127.95,127.91,20.0]
[1740719549347,9.7,127.95,127.92,0.14216157]
[1740719549651,9.7,127.99,127.92,0.14216157]
[1740719550235,9.7,128.0,127.92,0.14216157]
[1740719550435,0.063,127.95,127.92,0.14216157]
[1740719551047,0.063,127.95,127.81,218.1]
[1740719551048,9.7,127.94,127.81,218.1]
[1740719551553,9.7,127.94,127.89,20.0]
[1740719553334,9.7,127.94,127.9,0.14216157]
[1740719554251,0.063,127.95,127.94,0.14216157]
[1740719555036,0.063,127.95,127.94,25.36101043]
[1740719555353,9.7,128.06,127.94,239.74348171]
[1740719555555,9.7,128.06,127.94,103.24348171]
[1740719555763,15.81541567,128.06,127.94,103.24348171]
[1740719555968,9.7,128.05,127.94,103.24348171]
[1740719556955,18.64964886,128.07,127.95,1.64031349]
[1740719557270,9.7,128.07,127.99,20.0]
[1740719557564,0.063,128.08,128.03,20.0]
[1740719557859,0.063,128.08,128.04,0.14216157]
[1740719558054,0.063,128.08,128.07,20.0]
[1740719558265,0.063,128.08,128.07,20.14216157]
[1740719558567,0.063,128.08,128.07,20.0]
[1740719559969,0.063,128.08,128.01,227.8]
[1740719560258,0.063,128.08,128.04,20.0]
[1740719560761,0.063,128.08,127.97,219.6519]
[1740719560947,9.763,128.08,128.0,20.0]
[1740719561149,9.763,128.08,128.02,0.14216157]
[1740719561356,9.763,128.08,128.05,20.0]
[1740719561870,0.063,128.08,128.05,20.0]
[1740719563658,0.063,128.08,127.99,218.1]
[1740719563872,0.14216157,128.05,127.94,224.6692]
[1740719564166,0.14216157,128.03,127.92,83.2612]
[1740719564456,111.14964886,128.04,127.95,20.0]
[1740719564649,111.14964886,128.04,127.92,83.2612]
[1740719564851,111.14964886,128.04,127.93,18.79181043]
[1740719565360,111.14964886,128.04,127.92,1.6612]
[1740719565361,82.8,128.03,127.92,1.6612]
[1740719565546,82.8,128.03,127.92,3.30201275]
[1740719566063,82.8,128.03,127.93,38.64964886]
[1740719566266,9.7,128.04,127.9,8.26482569]
[1740719566267,0.14216157,128.01,127.9,6.6241]
[1740719566558,18.64964886,127.99,127.87,138.0281]
[1740719566744,9.7,127.99,127.87,84.76934227]
[1740719566954,9.7,127.99,127.88,18.79181043]
[1740719567645,9.7,127.99,127.95,20.0]
[1740719568483,9.7,127.99,127.9,0.14216157]
[1740719568765,18.64964886,127.98,127.87,218.1]
[1740719568953,18.64964886,127.98,127.9,20.0]
[1740719569158,92.5,127.99,127.91,0.14216157]
[1740719569358,82.94216157,127.98,127.9,20.0]
[1740719569557,18.64964886,127.97,127.87,81.6]
[1740719569762,82.8,127.98,127.88,18.79181043]
[1740719570079,82.8,127.98,127.91,20.0]
[1740719571845,15.7675,127.99,127.95,20.0]
[1740719572044,9.7,127.99,127.95,20.0]
[1740719572346,9.7,127.99,127.92,20.0]
[1740719572546,9.7,127.99,127.89,81.6]
[1740719572547,101.44964886,127.98,127.88,0.14216157]
[1740719572743,9.7,127.99,127.89,0.14216157]
[1740719573045,9.7,127.99,127.92,20.0]
[1740719574354,92.5,128.02,127.92,20.0]
[1740719574649,18.64964886,128.01,127.93,20.0]
[1740719574852,92.5,128.02,127.93,20.0]
[1740719575372,0.063,127.99,127.93,20.0]
[1740719575665,0.063,127.99,127.94,20.0]
[1740719584182,18.64964886,127.97,127.91,0.03]
[1740719584367,9.68,127.96,127.91,0.03]
[1740719585949,9.68,127.96,127.91,0.17216157]
[1740719586177,9.68,127.96,127.91,0.03]
[1740719586559,18.64964886,127.95,127.91,0.03]
[1740719586761,24.66834886,127.95,127.91,0.03]
[1740719586953,0.14216157,127.94,127.91,0.03]
[1740719587148,24.66834886,127.95,127.91,0.03]
[1740719587881,6.0187,127.95,127.91,0.03]
[1740719588358,9.68,127.96,127.91,0.03]
[1740719589173,9.68,127.96,127.91,0.17216157]
[1740719589885,9.68,127.96,127.91,0.03]
[1740719590063,9.68,127.96,127.92,20.0]
[1740719591458,9.68,127.96,127.91,0.03]
[1740719592287,0.14216157,127.94,127.91,0.03]
[1740719592491,6.612,127.91,127.8,224.6828]
[1740719592661,111.12964886,127.9,127.8,0.03]
[1740719592856,0.14216157,127.87,127.8,0.03]
[1740719593073,18.64964886,127.86,127.8,0.03]
[1740719593289,9.68,127.85,127.8,0.03]
[1740719594286,18.64964886,127.84,127.8,0.03]
[1740719596301,94.0465,127.85,127.8,0.03]
[1740719597298,92.48,127.85,127.8,0.03]
[1740719597591,9.68,127.85,127.81,20.0]
[1740719597973,9.68,127.85,127.8,20.03]
[1740719598669,9.68,127.85,127.8,0.03]
[1740719600399,9.68,127.87,127.8,0.03]
[1740719600687,28.32964886,127.87,127.81,0.03]
[1740719600869,18.64964886,127.86,127.81,0.03]
[1740719601813,92.48,127.87,127.81,0.03]
[1740719603307,88.93312377,127.92,127.81,38.82181043]
[1740719603483,0.063,127.91,127.81,263.40981043]
[1740719603678,0.063,127.91,127.86,20.0]
[1740719603912,0.063,127.91,127.9,20.0]
[1740719605097,0.063,127.91,127.9,20.14216157]
[1740719605887,0.063,127.91,127.9,120.39181043]
[1740719606698,0.063,127.91,127.9,101.74216157]
[1740719607209,0.063,127.91,127.87,0.14216157]
[1740719607390,0.063,127.91,127.89,20.0]
[1740719609381,0.063,127.91,127.85,81.6]
[1740719609583,0.063,127.91,127.81,88.118]
[1740719609891,0.063,127.91,127.84,20.0]
[1740719610305,0.063,127.91,127.82,0.14216157]
[1740719610493,18.71264886,127.91,127.82,0.14216157]
[1740719611085,18.71264886,127.91,127.84,20.0]
[1740719612494,0.063,127.91,127.84,20.0]
[1740719613189,0.063,127.91,127.85,0.14216157]
[1740719613499,0.063,127.91,127.87,20.0]
[1740719614088,0.063,127.91,127.88,20.0]
[1740719614498,0.063,127.91,127.89,20.0]
[1740719614888,0.063,127.91,127.85,81.74216157]
[1740719615083,0.063,127.91,127.88,20.0]
[1740719617411,0.063,127.91,127.86,0.14216157]
[1740719618108,0.063,127.91,127.89,20.0]
[1740719619917,0.063,127.91,127.83,81.6]
[1740719620239,0.063,127.91,127.81,6.518]
[1740719620517,0.063,127.91,127.85,20.0]
[1740719620812,0.063,127.91,127.82,18.79181043]
[1740719621109,0.063,127.91,127.85,20.0]
[1740719622612,0.063,127.91,127.86,0.14216157]
[1740719622809,0.063,127.91,127.89,20.0]
[1740719625925,0.063,127.91,127.86,0.14216157]
[1740719626132,0.063,127.91,127.84,0.03]
[1740719626294,9.743,127.91,127.84,0.03]
[1740719626489,18.64964886,127.9,127.84,0.03]
[1740719626694,18.64964886,127.88,127.84,0.03]
[1740719626908,0.14216157,127.87,127.84,0.03]
[1740719627100,9.68,127.86,127.84,0.03]
[1740719629100,9.68,127.86,127.81,19.63766494]
[1740719629905,98.8188,127.89,127.81,19.63766494]
[1740719630213,16.0188,127.89,127.81,0.14216157]
[1740719630416,9.68,127.89,127.83,0.14216157]
[1740719631103,9.68,127.89,127.85,20.0]
[1740719631814,9.68,127.89,127.84,20.0]
[1740719633017,9.68,127.89,127.81,20.0]
[1740719633409,101.59181043,127.88,127.8,0.03]
[1740719633809,0.14216157,127.86,127.8,0.03]
[1740719634010,18.64964886,127.84,127.8,0.03]
[1740719634327,18.79181043,127.82,127.8,0.03]
[1740719634513,84.3827,127.83,127.8,0.03]
[1740719635620,82.8,127.83,127.8,0.03]
[1740719636734,9.66,127.84,127.8,0.03]
[1740719637205,9.66,127.84,127.8,20.03]
[1740719637409,92.46,127.88,127.8,20.03]
[1740719637610,9.66,127.88,127.81,20.0]
[1740719642317,131.8,127.9,127.81,20.0]
[1740719642512,131.8,127.9,127.85,20.0]
[1740719643038,0.063,127.91,127.85,20.0]
[1740719643836,0.063,127.91,127.89,20.0]
[1740719645430,0.063,127.91,127.86,81.6]
[1740719645626,0.063,127.91,127.88,20.0]
[1740719646120,0.063,127.91,127.84,9.66]
[1740719646320,0.063,127.91,127.87,20.0]
[1740719646617,18.71264886,127.91,127.87,20.0]
[1740719646813,18.71264886,127.91,127.81,6.5341]
[1740719647018,0.14216157,127.88,127.8,0.03]
[1740719647219,18.64964886,127.86,127.8,0.03]
[1740719648023,18.64964886,127.84,127.8,0.03]
[1740719650340,18.64964886,127.84,127.81,0.03]
[1740719651362,138.46356157,127.88,127.81,0.03]
[1740719651363,138.3214,127.88,127.81,0.03]
[1740719651535,131.84,127.88,127.81,20.03]
[1740719651720,18.64964886,127.87,127.81,20.03]
[1740719652722,18.64964886,127.85,127.81,0.03]
[1740719653251,9.66,127.84,127.81,0.03]
[1740719653461,101.44964886,127.83,127.81,0.03]
[1740719653642,82.8,127.82,127.81,0.03]
[1740719656058,9.66,127.84,127.81,0.03]
[1740719657241,141.5,127.88,127.81,0.03]
[1740719657446,18.64964886,127.87,127.81,0.03]
[1740719658045,0.14216157,127.86,127.81,0.03]
[1740719658622,101.44964886,127.85,127.81,0.03]
[1740719659951,0.14216157,127.84,127.81,0.03]
[1740719660158,28.30964886,127.83,127.81,0.03]
[1740719661044,9.66,127.83,127.81,0.03]
[1740719662243,28.30964886,127.83,127.81,0.03]
[1740719662632,9.66,127.83,127.81,0.03]
[1740719663037,82.8,127.82,127.81,0.03]
[1740719664453,7.96566157,127.82,127.81,0.03]
[1740719664657,26.61531043,127.82,127.81,0.03]
[1740719664951,18.79181043,127.81,127.8,0.03]
[1740719666835,0.14216157,127.81,127.8,0.03]
[1740719667044,6.29646463,127.82,127.8,0.03]
[1740719667244,18.64964886,127.82,127.8,0.03]
[1740719668062,0.14216157,127.81,127.8,0.03]
[1740719668863,7.96626157,127.81,127.8,0.03]
[1740719669947,0.14216157,127.81,127.8,0.03]
[1740719670841,156.97362391,127.82,127.8,0.03]
[1740719671959,0.14216157,127.81,127.8,0.03]
[1740719672143,156.97362391,127.82,127.8,0.03]
[1740719673159,0.14216157,127.81,127.8,0.03]
[1740719674972,0.14216157,127.81,127.72,20.0]
[1740719675343,156.97362391,127.82,127.72,20.0]
[1740719675659,0.14216157,127.81,127.72,20.0]
[1740719677358,0.14216157,127.79,127.7,1.5131]
[1740719677562,9.64,127.78,127.7,1.5131]
[1740719677949,9.64,127.78,127.72,20.0]
[1740719677950,82.8,127.77,127.72,20.0]
[1740719678537,108.24721043,127.76,127.68,0.03]
[1740719678741,82.8,127.75,127.67,0.03]
[1740719678944,101.59181043,127.74,127.67,0.03]
[1740719679144,9.64,127.73,127.67,20.03]
[1740719679357,82.8,127.72,127.67,0.03]
[1740719679954,82.8,127.72,127.67,20.03]
[1740719683149,9.64,127.73,127.67,20.03]
[1740719683465,58.60325694,127.84,127.67,20.03]
[1740719683466,6.5426,127.8,127.67,20.03]
[1740719683680,92.44,127.79,127.71,20.0]
[1740719683865,92.44,127.79,127.71,21.5128]
[1740719685179,92.44,127.79,127.71,20.0]
[1740719685466,18.79181043,127.78,127.71,20.0]
[1740719685673,18.79181043,127.78,127.71,20.03]
[1740719686972,18.79181043,127.76,127.71,0.03]
[1740719687183,18.79181043,127.74,127.71,0.03]
[1740719687385,9.64,127.73,127.71,0.03]
[1740719687681,82.8,127.72,127.71,0.03]
[1740719691151,9.64,127.73,127.71,0.03]
[1740719697376,17.4691,127.73,127.71,0.03]
[1740719698168,17.4691,127.73,127.67,20.03]
[1740719698169,101.59181043,127.72,127.67,0.03]
[1740719698371,18.64964886,127.7,127.67,0.03]
[1740719698575,18.64964886,127.68,127.6,6.2327]
[1740719698774,9.64,127.67,127.6,6.2327]
[1740719698979,9.64,127.67,127.63,20.0]
[1740719699200,100.2727,127.67,127.63,20.0]
[1740719699704,106.48334189,127.67,127.63,20.0]
[1740719699877,100.2727,127.67,127.63,20.0]
[1740719700078,100.2727,127.67,127.6,6.2327]
[1740719700602,0.14216157,127.63,127.58,0.03]
[1740719700776,18.64964886,127.61,127.58,0.03]
[1740719700975,82.8,127.62,127.58,0.03]
[1740719701282,9.64,127.63,127.58,0.03]
[1740719702283,18.79181043,127.62,127.58,0.03]
[1740719702583,0.14216157,127.59,127.48,1.5914]
[1740719702783,18.64964886,127.57,127.48,1.5914]
[1740719702982,0.14216157,127.56,127.47,6.1781]
[1740719703184,18.64964886,127.54,127.5,20.0]
[1740719703390,9.64,127.53,127.44,7.7695]
[1740719703703,92.44,127.53,127.44,6.7695]
[1740719703902,92.44,127.53,127.45,7.8462]
[1740719704101,92.44,127.53,127.48,20.0]
[1740719705407,92.44,127.53,127.45,7.8462]
[1740719705600,92.44,127.53,127.45,7.3462]
[1740719706188,92.44,127.53,127.48,20.0]
[1740719708287,18.64964886,127.52,127.48,20.0]
[1740719708487,82.8,127.51,127.45,7.8462]
[1740719708709,82.8,127.51,127.48,20.0]
[1740719708911,9.64,127.53,127.48,20.0]
[1740719709389,9.64,127.53,127.47,20.0]
[1740719711411,9.64,127.53,127.44,20.0]
[1740719711707,9.64,127.53,127.44,27.8468]
[1740719711708,18.79181043,127.52,127.44,27.8468]
[1740719711900,18.29181043,127.52,127.44,27.8468]
[1740719712292,18.29181043,127.52,127.47,0.03]
[1740719712611,82.8,127.51,127.47,0.03]
[1740719712824,82.94216157,127.5,127.47,0.03]
[1740719713191,82.94216157,127.5,127.47,20.03]
[1740719713699,82.94216157,127.5,127.47,0.03]
[1740719714010,82.8,127.5,127.47,0.03]
[1740719714213,82.8,127.5,127.49,20.0]
[1740719715005,36.25794886,127.53,127.5,20.0]
[1740719715207,9.64,127.52,127.5,20.0]
[1740719715707,82.8,127.54,127.47,20.03]
[1740719715905,9.64,127.55,127.47,20.03]
[1740719716100,82.8,127.57,127.48,0.14216157]
[1740719716402,92.44,127.57,127.51,20.0]
[1740719717423,0.063,127.58,127.55,20.0]
[1740719718798,9.64,127.57,127.48,17.3236]
[1740719719217,9.64,127.57,127.51,20.0]
[1740719720016,0.14216157,127.55,127.51,20.0]
[1740719720337,82.8,127.54,127.44,6.1274]
[1740719720723,82.8,127.54,127.51,20.0]
[1740719720920,141.84,127.57,127.51,20.0]
[1740719721821,0.063,127.58,127.51,20.0]
[1740719722014,0.063,127.58,127.56,20.0]
[1740719722220,0.0001,127.58,127.56,20.0]
[1740719723315,0.0001,127.58,127.5,81.6]
[1740719723505,18.64974886,127.58,127.5,81.6]
[1740719723906,18.64974886,127.58,127.53,20.0]
[1740719724121,101.44974886,127.58,127.53,20.0]
[1740719724308,18.64964886,127.56,127.47,87.7002]
[1740719724612,82.8,127.57,127.5,20.0]
[1740719724816,0.0001,127.58,127.5,20.0]
[1740719725024,0.0001,127.58,127.51,0.03]
[1740719725532,0.0001,127.58,127.51,20.03]
[1740719726209,0.0001,127.58,127.51,0.03]
[1740719727608,18.64964886,127.56,127.51,0.03]
[1740719727932,90.78226157,127.55,127.51,0.03]
[1740719728234,9.64,127.54,127.51,0.03]
[1740719728424,9.6401,127.58,127.51,0.03]
[1740719728740,9.6401,127.58,127.54,20.0]
[1740719729323,0.0001,127.58,127.54,20.0]
[1740719729733,0.0001,127.58,127.55,0.14216157]
[1740719730227,0.0001,127.58,127.54,101.6]
[1740719730811,0.0001,127.58,127.54,20.0]
[1740719731427,9.64,127.57,127.51,6.465]
[1740719732031,9.64,127.57,127.54,20.0]
[1740719732416,0.0001,127.58,127.54,20.0]
[1740719735932,0.0001,127.58,127.55,0.14216157]
[1740719736235,0.0001,127.58,127.57,27.82656157]
[1740719736438,0.0001,127.58,127.57,109.42656157]
[1740719737034,0.0001,127.58,127.57,128.07621043]
[1740719737623,0.0001,127.58,127.57,109.42656157]
[1740719737937,0.0001,127.58,127.57,128.07621043]
[1740719738125,9.62,127.66,127.59,0.14216157]
[1740719738327,132.223,127.71,127.63,20.0]
[1740719738525,132.223,127.71,127.67,20.0]
[1740719738731,0.063,127.71,127.67,20.0]
[1740719742740,0.063,127.73,127.67,101.6]
[1740719743417,0.063,127.73,127.65,1.5179]
[1740719743735,24.80151043,127.71,127.61,6.2782]
[1740719743926,18.79181043,127.69,127.56,7.8123]
[1740719744125,18.64964886,127.67,127.56,89.4123]
[1740719744547,82.94216157,127.66,127.56,6.2782]
[1740719744718,18.64964886,127.64,127.56,6.2782]
[1740719744918,92.42,127.65,127.59,20.0]
[1740719745739,82.8,127.65,127.6,0.14216157]
[1740719746038,132.1,127.68,127.63,20.0]
[1740719746243,9.62,127.71,127.63,20.0]
[1740719746646,9.62,127.71,127.67,20.0]
[1740719748352,7.9708,127.71,127.67,20.0]
[1740719748524,0.063,127.73,127.67,20.0]
[1740719749950,0.063,127.71,127.67,20.0]
[1740719751042,0.063,127.71,127.68,0.14216157]
[1740719751653,0.063,127.71,127.68,1.77776157]
[1740719751949,0.063,127.71,127.7,0.14216157]
[1740719752131,0.063,127.73,127.72,20.14216157]
[1740719753050,0.063,127.73,127.72,120.39181043]
[1740719753350,0.063,127.73,127.7,224.324]
[1740719753654,0.063,127.73,127.72,20.0]
[1740719754030,0.063,127.73,127.72,20.14216157]
[1740719754437,0.063,127.73,127.72,101.74216157]
[1740719754755,0.063,127.73,127.72,120.39181043]
[1740719757448,132.08,127.82,127.77,0.14216157]
[1740719757657,9.6,127.85,127.8,20.0]
[1740719757877,9.6,127.87,127.8,20.0]
[1740719758229,26.47064886,127.86,127.8,20.0]
[1740719758663,18.64964886,127.86,127.8,20.0]
[1740719758835,9.6,127.87,127.8,20.0]
[1740719759251,82.8,127.88,127.8,20.0]
[1740719759457,9.6,127.87,127.8,20.0]
[1740719760755,18.64964886,127.86,127.77,81.6]
[1740719760953,82.8,127.85,127.73,218.1]
[1740719761156,82.8,127.83,127.72,83.1501]
[1740719761360,9.6,127.82,127.72,83.1501]
[1740719762179,9.6,127.82,127.73,0.14216157]
[1740719762380,9.6,127.82,127.75,20.0]
[1740719762583,18.64964886,127.81,127.7,6.224]
[1740719762752,82.94216157,127.8,127.7,6.224]
[1740719763067,18.64964886,127.79,127.67,218.13]
[1740719763268,82.8,127.78,127.7,20.0]
[1740719763467,92.4,127.78,127.7,20.0]
[1740719763771,9.6,127.78,127.7,20.0]
[1740719763969,9.6,127.78,127.71,20.14216157]
[1740719764275,9.6,127.78,127.71,101.74216157]
[1740719765175,9.6,127.78,127.71,101.6]
[1740719766172,9.6,127.78,127.71,20.0]
[1740719766561,9.6,127.78,127.72,0.14216157]
[1740719766763,9.6,127.78,127.71,101.6]
[1740719767251,131.96,127.81,127.75,20.0]
[1740719767452,82.8,127.83,127.75,20.0]
[1740719767850,92.4,127.83,127.75,20.0]
[1740719768054,9.6,127.83,127.76,0.14216157]
[1740719768253,9.663,127.84,127.78,20.0]
[1740719768879,101.44964886,127.83,127.74,6.4148]
[1740719769064,101.44964886,127.83,127.71,83.2096]
[1740719769265,18.64964886,127.81,127.71,1.6096]
[1740719769984,18.64964886,127.81,127.7,6.1175]
[1740719770169,0.14216157,127.8,127.7,6.1175]
[1740719770475,92.4,127.79,127.73,20.0]
[1740719770856,9.6,127.79,127.73,20.0]
[1740719771051,92.4,127.83,127.73,20.0]
[1740719771277,92.4,127.83,127.75,20.0]
[1740719771661,18.64964886,127.82,127.75,20.0]
[1740719771862,82.8,127.83,127.75,20.0]
[1740719772162,9.643,127.84,127.79,20.0]
[1740719772363,0.063,127.84,127.79,20.0]
[1740719772562,0.063,127.84,127.81,20.0]
[1740719773371,0.063,127.84,127.81,101.6]
[1740719773580,0.063,127.84,127.82,0.14216157]
[1740719773771,0.063,127.84,127.82,81.74216157]
[1740719774077,0.063,127.84,127.82,81.6]
[1740719774867,0.063,127.84,127.78,81.6]
[1740719775064,0.063,127.84,127.75,1.6656]
[1740719775273,0.063,127.84,127.74,91.18]
[1740719776573,0.063,127.84,127.74,81.6]
[1740719776774,18.64964886,127.82,127.72,81.6]
[1740719776971,9.58,127.81,127.72,81.6]
[1740719777368,18.64964886,127.8,127.7,6.3848]
[1740719777687,82.8,127.79,127.67,81.63]
[1740719777915,101.44964886,127.78,127.67,81.63]
[1740719778060,0.14216157,127.77,127.67,0.03]
[1740719778263,18.64964886,127.75,127.67,0.03]
[1740719778764,18.64964886,127.73,127.67,0.03]
[1740719779160,82.94216157,127.72,127.67,0.03]
[1740719779458,18.64964886,127.7,127.67,0.03]
[1740719780063,82.94216157,127.69,127.67,0.03]
[1740719780263,0.14216157,127.67,127.59,20.0]
[1740719780472,9.58,127.66,127.54,136.53]
[1740719780663,18.64964886,127.65,127.54,0.03]
[1740719780863,18.64964886,127.65,127.55,20.0]
[1740719781064,18.64964886,127.63,127.54,0.03]
[1740719781683,82.8,127.64,127.54,20.03]
[1740719782197,131.96,127.65,127.56,20.0]
[1740719782563,131.96,127.65,127.57,20.0]
[1740719783789,18.64964886,127.64,127.54,136.53]
[1740719784084,18.64964886,127.62,127.54,0.03]
[1740719784300,9.58,127.61,127.54,0.03]
[1740719785581,18.64964886,127.6,127.54,0.03]
[1740719786087,82.8,127.6,127.54,0.03]
[1740719787699,101.44964886,127.59,127.54,0.03]
[1740719787898,0.14216157,127.58,127.54,0.03]
[1740719788096,82.8,127.57,127.54,0.03]
[1740719788281,9.58,127.56,127.54,0.03]
[1740719788975,18.79181043,127.55,127.54,0.03]
[1740719789276,150.89181043,127.55,127.51,0.03]
[1740719789477,18.64964886,127.53,127.51,0.03]
[1740719789790,82.94216157,127.52,127.51,0.03]
[1740719789995,82.8,127.51,127.47,0.03]
[1740719790180,92.38,127.5,127.47,0.03]
[1740719790800,18.64964886,127.49,127.47,0.03]
[1740719791089,101.59181043,127.48,127.47,0.03]
[1740719791289,18.64964886,127.47,127.43,0.2]
[1740719791501,82.8,127.47,127.43,8.0473]
[1740719792101,9.58,127.5,127.43,8.0473]
[1740719792276,0.14216157,127.48,127.43,8.0473]
[1740719792589,101.44964886,127.47,127.46,20.0]
[1740719792906,82.8,127.47,127.46,27.8455]
[1740719793300,82.8,127.47,127.44,7.8468]
[1740719793491,82.3,127.47,127.44,7.8468]
[1740719793796,18.64964886,127.46,127.43,0.2]
[1740719793981,91.9,127.45,127.43,0.2]
[1740719794186,110.54964886,127.45,127.44,20.0]
[1740719794696,18.64964886,127.44,127.43,0.2]
[1740719794897,18.64964886,127.41,127.33,7.8536]
[1740719795202,18.64964886,127.39,127.33,7.8536]
[1740719795694,82.94216157,127.38,127.27,7.8573]
[1740719795879,18.64964886,127.36,127.27,7.8573]
[1740719796082,92.4,127.35,127.27,7.8573]
[1740719796284,101.59181043,127.34,127.27,7.8573]
[1740719796593,20.29371043,127.32,127.22,7.8603]
[1740719796792,18.79181043,127.3,127.22,7.8603]
[1740719797002,18.79181043,127.28,127.19,7.8622]
[1740719797298,18.79181043,127.28,127.22,20.0]
[1740719797594,18.79181043,127.28,127.19,7.3622]
[1740719797897,0.14216157,127.28,127.19,7.3622]
[1740719798194,18.79181043,127.28,127.22,0.03]
[1740719798386,18.79181043,127.28,127.18,0.2]
[1740719798591,18.79181043,127.26,127.18,0.2]
[1740719798777,0.14216157,127.24,127.18,0.2]
[1740719798978,18.79181043,127.22,127.18,0.2]
[1740719800301,9.6,127.23,127.21,20.0]
[1740719800980,132.28,127.25,127.18,8.0627]
[1740719800981,132.28,127.25,127.22,20.0]
[1740719801480,9.6,127.28,127.22,20.0]
[1740719802394,18.79181043,127.27,127.22,20.0]